[Event "*** SCC Grand Prix: Titled Tuesday Blitz"]
[Site "Chess.com"]
[Date "2020.09.08"]
[Round "2"]
[White "albi1999"]
[Black "Zarinur"]
[Result "1-0"]
[WhiteElo "2613"]
[BlackElo "2122"]
[TimeControl "180+1"]
[EndTime "10:18:24 PDT"]
[Termination "albi1999 won on time"]

1. d4 {[%clk 0:02:58.7]} 1... Nf6 {[%clk 0:02:58.7]} 2. c4 {[%clk 0:02:58.3]}
2... e6 {[%clk 0:02:58.3]} 3. Nf3 {[%clk 0:02:56.9]} 3... d5 {[%clk 0:02:56.8]}
4. g3 {[%clk 0:02:56.7]} 4... dxc4 {[%clk 0:02:54.4]} 5. Bg2 {[%clk 0:02:55.5]}
5... Bd7 {[%clk 0:02:54.3]} 6. Ne5 {[%clk 0:02:54.8]} 6... Bc6 {[%clk
0:02:54.2]} 7. Nxc6 {[%clk 0:02:54.6]} 7... Nxc6 {[%clk 0:02:53.9]} 8. O-O
{[%clk 0:02:55.5]} 8... Nxd4 {[%clk 0:02:40.4]} 9. Bxb7 {[%clk 0:02:50.2]} 9...
Rb8 {[%clk 0:02:39.4]} 10. Bg2 {[%clk 0:02:49.7]} 10... Bc5 {[%clk 0:02:20.5]}
11. Qa4+ {[%clk 0:02:37.6]} 11... Qd7 {[%clk 0:02:18.1]} 12. Qxc4 {[%clk
0:02:34.5]} 12... Qb5 {[%clk 0:02:07.2]} 13. Qxb5+ {[%clk 0:02:31.1]} 13... Rxb5
{[%clk 0:02:01.6]} 14. Nc3 {[%clk 0:02:23.3]} 14... Rb8 {[%clk 0:01:52.7]} 15.
Rd1 {[%clk 0:01:59.2]} 15... O-O {[%clk 0:01:45.6]} 16. e3 {[%clk 0:01:56.6]}
16... Nf5 {[%clk 0:01:36.6]} 17. b3 {[%clk 0:01:50.9]} 17... Rfd8 {[%clk
0:01:22.9]} 18. Bb2 {[%clk 0:01:41.4]} 18... Kf8 {[%clk 0:01:12.8]} 19. Rxd8+
{[%clk 0:01:39.3]} 19... Rxd8 {[%clk 0:01:11]} 20. Rd1 {[%clk 0:01:40.2]} 20...
Rxd1+ {[%clk 0:00:49.8]} 21. Nxd1 {[%clk 0:01:41.1]} 21... Nd6 {[%clk 0:00:48]}
22. Kf1 {[%clk 0:01:39]} 22... Ke7 {[%clk 0:00:29.4]} 23. Ke2 {[%clk 0:01:38.7]}
23... g6 {[%clk 0:00:26.5]} 24. Kd3 {[%clk 0:01:37.3]} 24... Nd7 {[%clk
0:00:24.3]} 25. Nc3 {[%clk 0:01:35.9]} 25... Bb6 {[%clk 0:00:23.1]} 26. Ba3
{[%clk 0:01:28.4]} 26... Ne5+ {[%clk 0:00:21.3]} 27. Ke2 {[%clk 0:01:25.2]}
27... Kd7 {[%clk 0:00:20.5]} 28. h3 {[%clk 0:01:23.9]} 28... f5 {[%clk
0:00:15.8]} 29. f4 {[%clk 0:01:19.1]} 29... Nef7 {[%clk 0:00:15.3]} 30. e4
{[%clk 0:01:19.2]} 30... Ba5 {[%clk 0:00:14]} 31. b4 {[%clk 0:01:03.8]} 31...
Bb6 {[%clk 0:00:11.8]} 32. e5 {[%clk 0:01:03.6]} 32... Nc4 {[%clk 0:00:11.2]}
33. Bc1 {[%clk 0:01:04]} 33... Bd4 {[%clk 0:00:10.3]} 34. Kd3 {[%clk 0:01:03.8]}
34... Bxc3 {[%clk 0:00:08.1]} 35. Kxc3 {[%clk 0:01:01.3]} 35... Nb6 {[%clk
0:00:07.2]} 36. Kd4 {[%clk 0:00:58.2]} 36... Nd8 {[%clk 0:00:06.8]} 37. Kc5
{[%clk 0:00:50.4]} 37... c6 {[%clk 0:00:06.5]} 38. Kd4 {[%clk 0:00:42]} 38...
Nb7 {[%clk 0:00:04.8]} 39. Bd2 {[%clk 0:00:42]} 39... Nd5 {[%clk 0:00:04.7]} 40.
a4 {[%clk 0:00:40.1]} 40... Kc7 {[%clk 0:00:04.3]} 41. Bf3 {[%clk 0:00:40.4]}
41... Nd8 {[%clk 0:00:04.1]} 42. Be2 {[%clk 0:00:39.9]} 42... Nf7 {[%clk
0:00:04]} 43. Bc4 {[%clk 0:00:37.1]} 43... Nd8 {[%clk 0:00:04.4]} 44. Bb3 {[%clk
0:00:29.1]} 44... Nf7 {[%clk 0:00:04.1]} 45. b5 {[%clk 0:00:24.6]} 45... cxb5
{[%clk 0:00:03.3]} 46. Bxd5 {[%clk 0:00:23.7]} 46... exd5 {[%clk 0:00:03.1]} 47.
axb5 {[%clk 0:00:22.1]} 1-0

[Event "*** SCC Grand Prix: Titled Tuesday Blitz"]
[Site "Chess.com"]
[Date "2020.09.08"]
[Round "2"]
[White "CakeinSpace2002"]
[Black "korbul"]
[Result "0-1"]
[WhiteElo "2254"]
[BlackElo "2469"]
[TimeControl "180+1"]
[EndTime "10:18:24 PDT"]
[Termination "korbul won by resignation"]

1. e4 {[%clk 0:03:00.9]} 1... c5 {[%clk 0:02:59.4]} 2. Nf3 {[%clk 0:02:59.6]}
2... e6 {[%clk 0:02:59.6]} 3. d4 {[%clk 0:02:59.1]} 3... cxd4 {[%clk 0:02:59.9]}
4. Nxd4 {[%clk 0:03:00]} 4... Nf6 {[%clk 0:03:00.2]} 5. Nc3 {[%clk 0:02:58.1]}
5... d6 {[%clk 0:03:00.5]} 6. g4 {[%clk 0:02:56.6]} 6... a6 {[%clk 0:03:00.1]}
7. Be3 {[%clk 0:02:54.9]} 7... e5 {[%clk 0:02:58.5]} 8. Nf5 {[%clk 0:02:50.3]}
8... g6 {[%clk 0:02:57]} 9. Ng3 {[%clk 0:02:34.4]} 9... Bxg4 {[%clk 0:02:54.7]}
10. f3 {[%clk 0:02:34.4]} 10... Be6 {[%clk 0:02:54.6]} 11. Qd2 {[%clk
0:02:34.4]} 11... Nc6 {[%clk 0:02:44.9]} 12. O-O-O {[%clk 0:02:32.1]} 12... Be7
{[%clk 0:02:44.1]} 13. h4 {[%clk 0:02:30.9]} 13... h5 {[%clk 0:02:41.1]} 14. Bh3
{[%clk 0:02:30.5]} 14... Qa5 {[%clk 0:02:30.5]} 15. Bxe6 {[%clk 0:02:29.5]}
15... fxe6 {[%clk 0:02:30.2]} 16. Nge2 {[%clk 0:02:28.4]} 16... O-O-O {[%clk
0:02:26.1]} 17. Kb1 {[%clk 0:02:23.8]} 17... d5 {[%clk 0:02:16.4]} 18. exd5
{[%clk 0:02:20.2]} 18... exd5 {[%clk 0:02:15.2]} 19. Bg5 {[%clk 0:02:20.2]}
19... d4 {[%clk 0:02:11]} 20. Ne4 {[%clk 0:02:11.7]} 20... Qxd2 {[%clk
0:02:01.1]} 21. Nxd2 {[%clk 0:02:12.6]} 21... Nd5 {[%clk 0:01:58.5]} 22. Bxe7
{[%clk 0:02:10.4]} 22... Ncxe7 {[%clk 0:01:53.9]} 23. Ne4 {[%clk 0:02:09.2]}
23... Rhf8 {[%clk 0:01:48.9]} 24. Ng5 {[%clk 0:02:07.9]} 24... Rd6 {[%clk
0:01:41.1]} 25. Ng3 {[%clk 0:02:06.3]} 25... Ne3 {[%clk 0:01:35.2]} 26. Rde1
{[%clk 0:02:00.3]} 26... N7f5 {[%clk 0:01:26.6]} 27. N3e4 {[%clk 0:01:59.5]}
27... Rc6 {[%clk 0:01:24.9]} 28. c3 {[%clk 0:01:57.1]} 28... Kb8 {[%clk
0:01:00.6]} 29. Rh2 {[%clk 0:01:51.2]} 29... Ka7 {[%clk 0:00:59.6]} 30. a3
{[%clk 0:01:41.6]} 30... b5 {[%clk 0:00:59.1]} 31. Rd2 {[%clk 0:01:29.2]} 31...
a5 {[%clk 0:00:57.8]} 32. cxd4 {[%clk 0:01:28.9]} 32... exd4 {[%clk 0:00:57.3]}
33. Rxd4 {[%clk 0:01:17.4]} 33... Nxd4 {[%clk 0:00:56.7]} 34. Rxe3 {[%clk
0:01:17.6]} 34... b4 {[%clk 0:00:40.4]} 35. axb4 {[%clk 0:01:15.1]} 35... axb4
{[%clk 0:00:40]} 36. Rd3 {[%clk 0:01:15.6]} 36... Nf5 {[%clk 0:00:26.5]} 37.
Rd7+ {[%clk 0:01:14.2]} 37... Kb6 {[%clk 0:00:25.1]} 38. b3 {[%clk 0:01:05]}
38... Rfc8 {[%clk 0:00:22.8]} 39. Rd2 {[%clk 0:00:57.2]} 39... Ne3 {[%clk
0:00:18.1]} 40. Rd6 {[%clk 0:00:39.8]} 40... Rxd6 {[%clk 0:00:17.2]} 41. Nxd6
{[%clk 0:00:40.7]} 41... Rc3 {[%clk 0:00:17.1]} 42. Kb2 {[%clk 0:00:39.6]} 42...
Nd1+ {[%clk 0:00:16.6]} 43. Ka2 {[%clk 0:00:39.8]} 43... Rc2+ {[%clk 0:00:16.5]}
44. Kb1 {[%clk 0:00:39.3]} 44... Rh2 {[%clk 0:00:15.3]} 45. Nc4+ {[%clk
0:00:37.7]} 45... Kc5 {[%clk 0:00:14.5]} 46. Ne5 {[%clk 0:00:38.6]} 46... Nc3+
{[%clk 0:00:14.2]} 47. Kc1 {[%clk 0:00:37.2]} 47... Rxh4 {[%clk 0:00:14.2]} 48.
Nxg6 {[%clk 0:00:36.5]} 48... Rh1+ {[%clk 0:00:14.3]} 49. Kd2 {[%clk 0:00:35.6]}
49... h4 {[%clk 0:00:15.2]} 50. Ke3 {[%clk 0:00:32.1]} 50... h3 {[%clk 0:00:15]}
51. Kf2 {[%clk 0:00:32.4]} 51... Rb1 {[%clk 0:00:14.3]} 52. Nxh3 {[%clk
0:00:31.4]} 52... Rxb3 {[%clk 0:00:14.5]} 53. Ne5 {[%clk 0:00:31.7]} 53... Nd5
{[%clk 0:00:13.6]} 54. f4 {[%clk 0:00:31]} 54... Rxh3 {[%clk 0:00:12.4]} 0-1

[Event "*** SCC Grand Prix: Titled Tuesday Blitz"]
[Site "Chess.com"]
[Date "2020.09.08"]
[Round "2"]
[White "LedakovAlexandr"]
[Black "anon569"]
[Result "1-0"]
[WhiteElo "2465"]
[BlackElo "2250"]
[TimeControl "180+1"]
[EndTime "10:18:24 PDT"]
[Termination "LedakovAlexandr won on time"]

1. d4 {[%clk 0:03:00.9]} 1... Nf6 {[%clk 0:02:57.3]} 2. Nf3 {[%clk 0:03:00.4]}
2... e6 {[%clk 0:02:56.7]} 3. Bg5 {[%clk 0:02:58.7]} 3... b6 {[%clk 0:02:51.5]}
4. Nbd2 {[%clk 0:02:59.1]} 4... c5 {[%clk 0:02:49.9]} 5. e3 {[%clk 0:02:59.2]}
5... Bb7 {[%clk 0:02:48.9]} 6. Bd3 {[%clk 0:02:59.8]} 6... Be7 {[%clk
0:02:48.2]} 7. c3 {[%clk 0:03:00.2]} 7... cxd4 {[%clk 0:02:25.6]} 8. Bxf6 {[%clk
0:02:57.1]} 8... Bxf6 {[%clk 0:02:23.4]} 9. exd4 {[%clk 0:02:56.8]} 9... d6
{[%clk 0:02:22.1]} 10. Qe2 {[%clk 0:02:56.1]} 10... Nd7 {[%clk 0:02:18.9]} 11.
O-O-O {[%clk 0:02:54]} 11... O-O {[%clk 0:02:09.6]} 12. h4 {[%clk 0:02:53]}
12... Rc8 {[%clk 0:01:31.8]} 13. g4 {[%clk 0:02:13.1]} 13... b5 {[%clk
0:01:16.6]} 14. g5 {[%clk 0:02:03.9]} 14... Be7 {[%clk 0:01:12.6]} 15. Bxb5
{[%clk 0:02:00]} 15... Nb6 {[%clk 0:01:03.7]} 16. Ba6 {[%clk 0:01:58]} 16... Qd7
{[%clk 0:00:55.5]} 17. Bxb7 {[%clk 0:01:52.2]} 17... Qxb7 {[%clk 0:00:55.3]} 18.
Nb3 {[%clk 0:01:53.1]} 18... Nc4 {[%clk 0:00:50.6]} 19. Nfd2 {[%clk 0:01:49.3]}
19... d5 {[%clk 0:00:35.1]} 20. Rdg1 {[%clk 0:01:41.5]} 20... a5 {[%clk
0:00:24.8]} 21. Nxc4 {[%clk 0:01:41]} 21... dxc4 {[%clk 0:00:24.3]} 22. Nd2
{[%clk 0:01:39.2]} 22... Qb5 {[%clk 0:00:15.5]} 23. Nb1 {[%clk 0:01:30.6]} 23...
Rb8 {[%clk 0:00:13.5]} 24. f3 {[%clk 0:01:29.5]} 24... Bd6 {[%clk 0:00:13.5]}
25. Rg4 {[%clk 0:01:27.9]} 25... a4 {[%clk 0:00:13.5]} 26. a3 {[%clk 0:01:26.5]}
26... Qf5 {[%clk 0:00:13.1]} 27. Qe4 {[%clk 0:01:21.4]} 27... Qb5 {[%clk
0:00:13]} 28. Qc2 {[%clk 0:01:20.2]} 28... Qd5 {[%clk 0:00:10]} 29. Nd2 {[%clk
0:01:16.5]} 29... Rb7 {[%clk 0:00:07.7]} 30. Qe4 {[%clk 0:00:53.6]} 30... Qb5
{[%clk 0:00:06.5]} 31. Nxc4 {[%clk 0:00:53.8]} 31... Rc8 {[%clk 0:00:04.4]} 32.
Qxb7 {[%clk 0:00:39.4]} 32... Qxb7 {[%clk 0:00:03.7]} 33. Nxd6 {[%clk
0:00:40.3]} 33... Qxf3 {[%clk 0:00:03.3]} 34. Rhg1 {[%clk 0:00:35.4]} 34... Rb8
{[%clk 0:00:03.5]} 35. Nc4 {[%clk 0:00:30.3]} 35... Qf2 {[%clk 0:00:03.4]} 36.
R4g2 {[%clk 0:00:27.9]} 36... Qf4+ {[%clk 0:00:03.8]} 37. Nd2 {[%clk 0:00:26]}
37... Qxh4 {[%clk 0:00:04.1]} 38. Rf1 {[%clk 0:00:23.3]} 38... Qh5 {[%clk
0:00:03.4]} 39. Rgf2 {[%clk 0:00:23.1]} 39... Rb7 {[%clk 0:00:02.1]} 40. Ne4
{[%clk 0:00:20.1]} 40... Qg4 {[%clk 0:00:01.7]} 41. Re1 {[%clk 0:00:19.6]} 41...
Qg3 {[%clk 0:00:01]} 42. Nxg3 {[%clk 0:00:19.1]} 1-0

[Event "*** SCC Grand Prix: Titled Tuesday Blitz"]
[Site "Chess.com"]
[Date "2020.09.08"]
[Round "2"]
[White "Beltraxtor"]
[Black "Fandorine"]
[Result "0-1"]
[WhiteElo "2565"]
[BlackElo "2903"]
[TimeControl "180+1"]
[EndTime "10:18:25 PDT"]
[Termination "Fandorine won on time"]

1. e4 {[%clk 0:03:00.9]} 1... c5 {[%clk 0:02:58.3]} 2. Nf3 {[%clk 0:02:59.6]}
2... d6 {[%clk 0:02:58.8]} 3. Bb5+ {[%clk 0:03:00]} 3... Nd7 {[%clk 0:02:58.6]}
4. d4 {[%clk 0:03:00.5]} 4... cxd4 {[%clk 0:02:58.6]} 5. Qxd4 {[%clk 0:03:01.4]}
5... a6 {[%clk 0:02:57]} 6. Bxd7+ {[%clk 0:03:01.7]} 6... Bxd7 {[%clk
0:02:57.9]} 7. Nc3 {[%clk 0:03:02.2]} 7... Nf6 {[%clk 0:02:55.7]} 8. Bg5 {[%clk
0:03:01]} 8... e6 {[%clk 0:02:48.4]} 9. O-O {[%clk 0:02:54.5]} 9... Be7 {[%clk
0:02:47.7]} 10. a4 {[%clk 0:02:52.5]} 10... Bc6 {[%clk 0:02:47.8]} 11. Rad1
{[%clk 0:02:44.5]} 11... Rc8 {[%clk 0:02:44.8]} 12. Rfe1 {[%clk 0:02:41.3]}
12... O-O {[%clk 0:02:44.4]} 13. Qd3 {[%clk 0:02:16.1]} 13... Qc7 {[%clk
0:02:41.5]} 14. Nd4 {[%clk 0:01:59.8]} 14... Ng4 {[%clk 0:02:15.5]} 15. Bxe7
{[%clk 0:01:47]} 15... Qxe7 {[%clk 0:02:16.4]} 16. f4 {[%clk 0:01:31.4]} 16...
Qh4 {[%clk 0:01:57.8]} 17. Qg3 {[%clk 0:01:19.2]} 17... Qxg3 {[%clk 0:01:53.5]}
18. hxg3 {[%clk 0:01:20.1]} 18... Rfd8 {[%clk 0:01:53.7]} 19. Rd3 {[%clk
0:01:12.6]} 19... Kf8 {[%clk 0:01:53.1]} 20. Red1 {[%clk 0:01:07.4]} 20... Be8
{[%clk 0:01:53.1]} 21. Kf1 {[%clk 0:01:06.3]} 21... Ke7 {[%clk 0:01:52.5]} 22.
Ke2 {[%clk 0:01:02]} 22... h6 {[%clk 0:01:43.3]} 23. Nf3 {[%clk 0:00:59.9]}
23... Bc6 {[%clk 0:01:39.4]} 24. R1d2 {[%clk 0:00:55.9]} 24... b6 {[%clk
0:01:21.4]} 25. Rd4 {[%clk 0:00:27.9]} 25... Ba8 {[%clk 0:01:10.4]} 26. Nd1
{[%clk 0:00:27]} 26... Nf6 {[%clk 0:00:57.2]} 27. Nf2 {[%clk 0:00:26.5]} 27...
d5 {[%clk 0:00:53.2]} 28. e5 {[%clk 0:00:18.7]} 28... Nd7 {[%clk 0:00:48.9]} 29.
g4 {[%clk 0:00:18.2]} 29... b5 {[%clk 0:00:43.6]} 30. axb5 {[%clk 0:00:15.7]}
30... axb5 {[%clk 0:00:44.5]} 31. Rb4 {[%clk 0:00:15.1]} 31... Rc4 {[%clk
0:00:44.9]} 32. Nd3 {[%clk 0:00:12.4]} 32... g5 {[%clk 0:00:23.7]} 33. fxg5
{[%clk 0:00:10.5]} 33... hxg5 {[%clk 0:00:24.2]} 34. c3 {[%clk 0:00:06.9]} 34...
Rh8 {[%clk 0:00:19.4]} 35. Nxg5 {[%clk 0:00:06.7]} 35... Rg8 {[%clk 0:00:17.5]}
36. Nf3 {[%clk 0:00:03.3]} 36... Rgxg4 {[%clk 0:00:17.4]} 37. Kf2 {[%clk
0:00:03.6]} 37... Rg8 {[%clk 0:00:09.3]} 38. Rxb5 {[%clk 0:00:03.6]} 38... Rcg4
{[%clk 0:00:09]} 39. Nde1 {[%clk 0:00:02.2]} 39... Bc6 {[%clk 0:00:07]} 0-1

[Event "*** SCC Grand Prix: Titled Tuesday Blitz"]
[Site "Chess.com"]
[Date "2020.09.08"]
[Round "2"]
[White "Morshynska"]
[Black "QuintilianoR"]
[Result "0-1"]
[WhiteElo "2174"]
[BlackElo "2620"]
[TimeControl "180+1"]
[EndTime "10:18:26 PDT"]
[Termination "QuintilianoR won by checkmate"]

1. e4 {[%clk 0:03:00.9]} 1... c5 {[%clk 0:02:59.3]} 2. Nf3 {[%clk 0:03:00.5]}
2... d6 {[%clk 0:02:58.8]} 3. Bb5+ {[%clk 0:03:00]} 3... Nd7 {[%clk 0:02:58]} 4.
d4 {[%clk 0:02:58.7]} 4... cxd4 {[%clk 0:02:58.9]} 5. Qxd4 {[%clk 0:02:58.6]}
5... a6 {[%clk 0:02:59]} 6. Bxd7+ {[%clk 0:02:58]} 6... Bxd7 {[%clk 0:02:59.9]}
7. c4 {[%clk 0:02:58.6]} 7... Rc8 {[%clk 0:02:59.5]} 8. Nc3 {[%clk 0:02:41.9]}
8... e5 {[%clk 0:02:57.9]} 9. Qd3 {[%clk 0:02:40.6]} 9... Qc7 {[%clk 0:02:57.6]}
10. Nd2 {[%clk 0:02:27.1]} 10... Nf6 {[%clk 0:02:55.7]} 11. O-O {[%clk
0:02:24.2]} 11... Be7 {[%clk 0:02:55.3]} 12. a4 {[%clk 0:02:21]} 12... O-O
{[%clk 0:02:53.1]} 13. a5 {[%clk 0:02:20.3]} 13... Be6 {[%clk 0:02:22.7]} 14. b3
{[%clk 0:02:19]} 14... b5 {[%clk 0:01:59.2]} 15. axb6 {[%clk 0:02:15.6]} 15...
Qxb6 {[%clk 0:01:58.8]} 16. Ba3 {[%clk 0:02:03.7]} 16... Rfd8 {[%clk 0:01:58.3]}
17. h3 {[%clk 0:01:46.7]} 17... g6 {[%clk 0:01:47.6]} 18. Kh2 {[%clk 0:01:31.8]}
18... Qb7 {[%clk 0:01:32.8]} 19. g4 {[%clk 0:01:14.8]} 19... Nd7 {[%clk
0:01:31.5]} 20. Nd5 {[%clk 0:00:44.1]} 20... Bxd5 {[%clk 0:01:20.8]} 21. Qxd5
{[%clk 0:00:45]} 21... Qb8 {[%clk 0:01:10.6]} 22. Rfb1 {[%clk 0:00:30.8]} 22...
Nc5 {[%clk 0:01:04.1]} 23. f3 {[%clk 0:00:27.2]} 23... Bg5 {[%clk 0:01:01.1]}
24. Nf1 {[%clk 0:00:21.9]} 24... Ne6 {[%clk 0:00:52.4]} 25. Qd1 {[%clk
0:00:17.3]} 25... Qb6 {[%clk 0:00:47.9]} 26. Qe2 {[%clk 0:00:14.3]} 26... Nf4
{[%clk 0:00:32.9]} 27. Qe3 {[%clk 0:00:14.5]} 27... Qc7 {[%clk 0:00:26.3]} 28.
Qf2 {[%clk 0:00:09.9]} 28... Qe7 {[%clk 0:00:24.4]} 29. Qc2 {[%clk 0:00:08.2]}
29... Qf6 {[%clk 0:00:19.4]} 30. Bb4 {[%clk 0:00:08.1]} 30... Ne6 {[%clk
0:00:18.5]} 31. Kg2 {[%clk 0:00:06.6]} 31... Nd4 {[%clk 0:00:12.3]} 32. Qf2
{[%clk 0:00:05.9]} 32... Bh4 {[%clk 0:00:11.3]} 33. Qe3 {[%clk 0:00:05.7]} 33...
Nc2 {[%clk 0:00:11.6]} 34. Qd3 {[%clk 0:00:05.1]} 34... Nxb4 {[%clk 0:00:11.5]}
35. Qd2 {[%clk 0:00:04.4]} 35... Nc6 {[%clk 0:00:11.3]} 36. Ne3 {[%clk
0:00:04.5]} 36... Nd4 {[%clk 0:00:10.7]} 37. Qd1 {[%clk 0:00:03.9]} 37... Qf4
{[%clk 0:00:09.3]} 38. Nf1 {[%clk 0:00:04.1]} 38... h5 {[%clk 0:00:08.4]} 39.
Rxa6 {[%clk 0:00:03.1]} 39... hxg4 {[%clk 0:00:07.1]} 40. fxg4 {[%clk 0:00:04]}
40... Kg7 {[%clk 0:00:06.8]} 41. b4 {[%clk 0:00:04.3]} 41... Qf2+ {[%clk
0:00:06]} 42. Kh1 {[%clk 0:00:03.6]} 42... Nf3 {[%clk 0:00:06.5]} 43. Ra2 {[%clk
0:00:02.3]} 43... Qg1# {[%clk 0:00:06.2]} 0-1

[Event "*** SCC Grand Prix: Titled Tuesday Blitz"]
[Site "Chess.com"]
[Date "2020.09.08"]
[Round "2"]
[White "mamey78"]
[Black "Sacbutt"]
[Result "1-0"]
[WhiteElo "2441"]
[BlackElo "2223"]
[TimeControl "180+1"]
[EndTime "10:18:26 PDT"]
[Termination "mamey78 won on time"]

1. e4 {[%clk 0:03:00.9]} 1... c5 {[%clk 0:02:58.7]} 2. Nf3 {[%clk 0:02:59.5]}
2... d6 {[%clk 0:02:59.1]} 3. d4 {[%clk 0:02:59.1]} 3... cxd4 {[%clk 0:03:00]}
4. Nxd4 {[%clk 0:02:59.5]} 4... Nf6 {[%clk 0:03:00.7]} 5. Nc3 {[%clk 0:02:59.7]}
5... a6 {[%clk 0:03:01.5]} 6. Bg5 {[%clk 0:02:59.9]} 6... e6 {[%clk 0:03:01.4]}
7. f4 {[%clk 0:02:59.3]} 7... Be7 {[%clk 0:03:02]} 8. Qf3 {[%clk 0:02:59]} 8...
Qc7 {[%clk 0:03:01.5]} 9. O-O-O {[%clk 0:02:58.4]} 9... Nbd7 {[%clk 0:03:01.6]}
10. g4 {[%clk 0:02:57.5]} 10... b5 {[%clk 0:03:02.1]} 11. Bxf6 {[%clk
0:02:56.3]} 11... Nxf6 {[%clk 0:02:57.9]} 12. g5 {[%clk 0:02:55.6]} 12... Nd7
{[%clk 0:02:58.5]} 13. f5 {[%clk 0:02:55.8]} 13... Ne5 {[%clk 0:02:51]} 14. Qg3
{[%clk 0:02:47.6]} 14... b4 {[%clk 0:02:40.6]} 15. Nce2 {[%clk 0:02:46.9]} 15...
exf5 {[%clk 0:02:32.9]} 16. Nxf5 {[%clk 0:02:25.7]} 16... Bxf5 {[%clk
0:02:29.1]} 17. exf5 {[%clk 0:02:24.8]} 17... Rc8 {[%clk 0:02:29.6]} 18. Nd4
{[%clk 0:02:24.3]} 18... Nc6 {[%clk 0:02:22.2]} 19. Nxc6 {[%clk 0:02:05.3]}
19... Qxc6 {[%clk 0:02:23.1]} 20. Bd3 {[%clk 0:02:05.4]} 20... f6 {[%clk
0:01:48.4]} 21. Rhe1 {[%clk 0:02:00.6]} 21... Rc7 {[%clk 0:01:18]} 22. Re6
{[%clk 0:01:36]} 22... O-O {[%clk 0:01:12.1]} 23. g6 {[%clk 0:01:26.6]} 23... h6
{[%clk 0:01:08.2]} 24. Kb1 {[%clk 0:01:18.1]} 24... Rd8 {[%clk 0:00:54.9]} 25.
Be4 {[%clk 0:01:12.8]} 25... Qc5 {[%clk 0:00:40.9]} 26. Qd3 {[%clk 0:01:07.4]}
26... a5 {[%clk 0:00:35.5]} 27. Bd5 {[%clk 0:01:05.3]} 27... Kh8 {[%clk
0:00:34.2]} 28. Rde1 {[%clk 0:01:02.2]} 28... Bf8 {[%clk 0:00:27.5]} 29. b3
{[%clk 0:00:57.1]} 29... Qf2 {[%clk 0:00:17.6]} 30. Bc4 {[%clk 0:00:42.3]} 30...
Qc5 {[%clk 0:00:16.9]} 31. R1e4 {[%clk 0:00:27.8]} 31... d5 {[%clk 0:00:13]} 32.
Rd4 {[%clk 0:00:25.8]} 32... Rcd7 {[%clk 0:00:11.5]} 33. Bb5 {[%clk 0:00:24]}
33... Rd6 {[%clk 0:00:11.4]} 34. Rxd6 {[%clk 0:00:23.2]} 34... Qxd6 {[%clk
0:00:11.8]} 35. Bc4 {[%clk 0:00:22]} 35... Qxh2 {[%clk 0:00:08.7]} 36. Rxd5
{[%clk 0:00:22.1]} 36... Qh1+ {[%clk 0:00:08.6]} 37. Kb2 {[%clk 0:00:21.4]}
37... Rxd5 {[%clk 0:00:09]} 38. Bxd5 {[%clk 0:00:21.3]} 38... Qh2 {[%clk
0:00:09.5]} 39. Bc4 {[%clk 0:00:20.8]} 39... Qe5+ {[%clk 0:00:09.9]} 40. Kb1
{[%clk 0:00:20.7]} 40... Qf4 {[%clk 0:00:09.8]} 41. a4 {[%clk 0:00:19.6]} 41...
Qd6 {[%clk 0:00:09.8]} 42. Qe4 {[%clk 0:00:18.9]} 42... Qe7 {[%clk 0:00:09.6]}
43. Qd5 {[%clk 0:00:17.8]} 43... Qe1+ {[%clk 0:00:09.4]} 44. Ka2 {[%clk
0:00:16.8]} 1-0

[Event "*** SCC Grand Prix: Titled Tuesday Blitz"]
[Site "Chess.com"]
[Date "2020.09.08"]
[Round "2"]
[White "Snegokhod"]
[Black "WiktoriaPOL"]
[Result "1-0"]
[WhiteElo "2358"]
[BlackElo "1958"]
[TimeControl "180+1"]
[EndTime "10:18:26 PDT"]
[Termination "Snegokhod won on time"]

1. e4 {[%clk 0:02:52.9]} 1... c5 {[%clk 0:02:58.9]} 2. Nf3 {[%clk 0:02:52.4]}
2... g6 {[%clk 0:02:58.8]} 3. d4 {[%clk 0:02:51.9]} 3... cxd4 {[%clk 0:02:58.2]}
4. Qxd4 {[%clk 0:02:52.8]} 4... Nf6 {[%clk 0:02:57.7]} 5. e5 {[%clk 0:02:53.1]}
5... Nc6 {[%clk 0:02:57.4]} 6. Qf4 {[%clk 0:02:52.9]} 6... Nd5 {[%clk
0:02:54.8]} 7. Qe4 {[%clk 0:02:51.1]} 7... Ndb4 {[%clk 0:02:44.7]} 8. Na3 {[%clk
0:02:50.6]} 8... d5 {[%clk 0:02:40.7]} 9. exd6 {[%clk 0:02:50.4]} 9... Qxd6
{[%clk 0:02:18.4]} 10. Bf4 {[%clk 0:02:44.8]} 10... Qe6 {[%clk 0:02:16.9]} 11.
Qxe6 {[%clk 0:02:37.4]} 11... Bxe6 {[%clk 0:02:17.8]} 12. c3 {[%clk 0:02:31.8]}
12... Nd5 {[%clk 0:02:15.5]} 13. Bd2 {[%clk 0:02:28.5]} 13... Bg7 {[%clk
0:02:13]} 14. Bc4 {[%clk 0:02:19.9]} 14... O-O-O {[%clk 0:01:57.1]} 15. Ng5
{[%clk 0:02:18.1]} 15... Ne5 {[%clk 0:01:37.7]} 16. Nxe6 {[%clk 0:02:15]} 16...
fxe6 {[%clk 0:01:37.3]} 17. Be2 {[%clk 0:02:12.2]} 17... Rhf8 {[%clk 0:01:30.3]}
18. Nb5 {[%clk 0:02:06.6]} 18... a6 {[%clk 0:01:26.1]} 19. Nd4 {[%clk
0:02:05.6]} 19... Rd6 {[%clk 0:01:20.7]} 20. g3 {[%clk 0:02:04.8]} 20... Nc6
{[%clk 0:01:19.1]} 21. Nxc6 {[%clk 0:02:03.6]} 21... Rxc6 {[%clk 0:01:16]} 22.
O-O {[%clk 0:01:50.9]} 22... Rd8 {[%clk 0:01:09.5]} 23. Rad1 {[%clk 0:01:49.3]}
23... Nf6 {[%clk 0:01:06.7]} 24. Bf3 {[%clk 0:01:41.5]} 24... Rcd6 {[%clk
0:00:44.7]} 25. Bf4 {[%clk 0:01:38.7]} 25... R6d7 {[%clk 0:00:42.6]} 26. Rxd7
{[%clk 0:01:35.1]} 26... Rxd7 {[%clk 0:00:42.2]} 27. Re1 {[%clk 0:01:34.9]}
27... Nd5 {[%clk 0:00:38]} 28. Bc1 {[%clk 0:01:29.9]} 28... e5 {[%clk 0:00:34]}
29. Bg4 {[%clk 0:01:27.4]} 29... Kc7 {[%clk 0:00:29.2]} 30. Bxd7 {[%clk
0:01:26.5]} 30... Kxd7 {[%clk 0:00:29.1]} 31. f3 {[%clk 0:01:24.1]} 31... Kc6
{[%clk 0:00:26.7]} 32. Kf2 {[%clk 0:01:22.4]} 32... Nb6 {[%clk 0:00:24.8]} 33.
Ke3 {[%clk 0:01:18.8]} 33... Nc4+ {[%clk 0:00:23.5]} 34. Kd3 {[%clk 0:01:18.7]}
34... b5 {[%clk 0:00:22.4]} 35. b3 {[%clk 0:01:18.1]} 35... Nb6 {[%clk
0:00:21.7]} 36. c4 {[%clk 0:01:17.5]} 36... bxc4+ {[%clk 0:00:20.2]} 37. bxc4
{[%clk 0:01:17.1]} 37... Kc5 {[%clk 0:00:20.2]} 38. Ba3+ {[%clk 0:01:16.5]}
38... Kc6 {[%clk 0:00:19.7]} 39. Bxe7 {[%clk 0:01:16.2]} 39... Na4 {[%clk
0:00:15.6]} 40. Rb1 {[%clk 0:01:12.7]} 40... Nb2+ {[%clk 0:00:10.6]} 41. Rxb2
{[%clk 0:01:05.8]} 41... e4+ {[%clk 0:00:10.5]} 42. fxe4 {[%clk 0:00:54.6]}
42... Bxb2 {[%clk 0:00:10.4]} 43. c5 {[%clk 0:00:50.1]} 43... Ba3 {[%clk
0:00:08.4]} 44. Kc4 {[%clk 0:00:49.6]} 44... Bb2 {[%clk 0:00:08.6]} 45. Bd6
{[%clk 0:00:48.7]} 45... Ba3 {[%clk 0:00:04.8]} 46. e5 {[%clk 0:00:48.3]} 46...
Bc1 {[%clk 0:00:04.3]} 47. e6 {[%clk 0:00:48.7]} 47... Bg5 {[%clk 0:00:04.2]}
48. e7 {[%clk 0:00:48.8]} 48... Kd7 {[%clk 0:00:04.4]} 49. Kd5 {[%clk
0:00:48.9]} 49... Bxe7 {[%clk 0:00:03.6]} 50. c6+ {[%clk 0:00:48.3]} 50... Kd8
{[%clk 0:00:03.1]} 51. Bxe7+ {[%clk 0:00:46.7]} 51... Kxe7 {[%clk 0:00:04]} 52.
g4 {[%clk 0:00:45]} 52... Kd8 {[%clk 0:00:03.7]} 53. g5 {[%clk 0:00:45.1]} 53...
Kc7 {[%clk 0:00:03.3]} 54. Kc5 {[%clk 0:00:44.9]} 54... Kc8 {[%clk 0:00:03.2]}
55. Kb6 {[%clk 0:00:43.5]} 55... Kb8 {[%clk 0:00:03.3]} 56. Kxa6 {[%clk
0:00:43.5]} 56... Kc7 {[%clk 0:00:03.1]} 57. Kb5 {[%clk 0:00:43.4]} 1-0